[Event "*** Titled Tuesday Blitz"]
[Site "Chess.com"]
[Date "2020.03.03"]
[Round "5"]
[White "vlad10898"]
[Black "ChelsieMonica"]
[Result "1-0"]
[WhiteElo "2680"]
[BlackElo "2149"]
[TimeControl "180+1"]
[EndTime "9:53:26 PST"]
[Termination "vlad10898 won by resignation"]

1. e4 {[%clk 0:03:00.9]} 1... e5 {[%clk 0:02:58.5]} 2. Nf3 {[%clk 0:03:00.8]}
2... Nc6 {[%clk 0:02:55.3]} 3. Bc4 {[%clk 0:03:01.2]} 3... Be7 {[%clk
0:02:53.8]} 4. O-O {[%clk 0:03:00.1]} 4... Nf6 {[%clk 0:02:47.4]} 5. d3 {[%clk
0:03:00.4]} 5... O-O {[%clk 0:02:46.9]} 6. Re1 {[%clk 0:03:00.6]} 6... a6 {[%clk
0:02:46.6]} 7. a4 {[%clk 0:02:58.3]} 7... d6 {[%clk 0:02:46.4]} 8. c3 {[%clk
0:02:52.2]} 8... Bg4 {[%clk 0:02:38.7]} 9. Nbd2 {[%clk 0:02:48.6]} 9... Na5
{[%clk 0:02:33.2]} 10. Ba2 {[%clk 0:02:48.3]} 10... c5 {[%clk 0:02:32.3]} 11. h3
{[%clk 0:02:40.6]} 11... Bh5 {[%clk 0:02:31.6]} 12. Nf1 {[%clk 0:02:39.8]} 12...
Re8 {[%clk 0:02:30.6]} 13. Ng3 {[%clk 0:02:29.4]} 13... Bg6 {[%clk 0:02:28.5]}
14. Nh4 {[%clk 0:02:22.1]} 14... Rc8 {[%clk 0:02:18.5]} 15. Nhf5 {[%clk
0:02:17.4]} 15... Bf8 {[%clk 0:02:09.9]} 16. Bg5 {[%clk 0:02:13.8]} 16... c4
{[%clk 0:02:02.4]} 17. d4 {[%clk 0:01:52.5]} 17... h6 {[%clk 0:01:52.7]} 18.
Bxf6 {[%clk 0:01:52.4]} 18... Qxf6 {[%clk 0:01:49.6]} 19. Ne3 {[%clk 0:01:52.7]}
19... Qd8 {[%clk 0:01:39.5]} 20. dxe5 {[%clk 0:01:42.4]} 20... dxe5 {[%clk
0:01:37.5]} 21. Qxd8 {[%clk 0:01:42.7]} 21... Rexd8 {[%clk 0:01:36.9]} 22. Rad1
{[%clk 0:01:40.7]} 22... Rd3 {[%clk 0:01:35.4]} 23. Rxd3 {[%clk 0:01:30.3]}
23... cxd3 {[%clk 0:01:30]} 24. Rd1 {[%clk 0:01:29.4]} 24... Rd8 {[%clk
0:01:28.9]} 25. Nd5 {[%clk 0:01:22.3]} 25... h5 {[%clk 0:01:21.5]} 26. Rxd3
{[%clk 0:01:20.2]} 26... h4 {[%clk 0:01:20.8]} 27. Nf1 {[%clk 0:01:08.6]} 27...
Nc6 {[%clk 0:01:19]} 28. Nd2 {[%clk 0:01:04.4]} 28... Kh7 {[%clk 0:01:10.6]} 29.
b4 {[%clk 0:01:04.4]} 29... Kh6 {[%clk 0:01:02.7]} 30. f3 {[%clk 0:01:00.8]}
30... a5 {[%clk 0:01:01]} 31. b5 {[%clk 0:00:59.9]} 31... Bc5+ {[%clk
0:00:59.4]} 32. Kf1 {[%clk 0:00:59.1]} 32... Ne7 {[%clk 0:00:58.4]} 33. Ke2
{[%clk 0:00:51]} 33... Nxd5 {[%clk 0:00:52.9]} 34. Rxd5 {[%clk 0:00:48.8]} 34...
Rc8 {[%clk 0:00:44]} 35. Rxe5 {[%clk 0:00:46.4]} 35... f6 {[%clk 0:00:43.4]} 36.
Be6 {[%clk 0:00:32]} 36... Rc7 {[%clk 0:00:35.6]} 37. Rd5 {[%clk 0:00:32.2]}
37... b6 {[%clk 0:00:35.7]} 38. Rd7 {[%clk 0:00:27.5]} 38... Rc8 {[%clk
0:00:35]} 39. c4 {[%clk 0:00:21.8]} 39... Re8 {[%clk 0:00:34.4]} 40. Bf7 {[%clk
0:00:20.2]} 40... Bxf7 {[%clk 0:00:32.3]} 41. Rxf7 {[%clk 0:00:21.1]} 41... Kg6
{[%clk 0:00:32.8]} 42. Rd7 {[%clk 0:00:20.6]} 42... f5 {[%clk 0:00:32.6]} 43.
Kd3 {[%clk 0:00:20.3]} 43... Bb4 {[%clk 0:00:29.7]} 44. exf5+ {[%clk 0:00:19.3]}
44... Kxf5 {[%clk 0:00:29.5]} 45. Ne4 {[%clk 0:00:20.2]} 45... g6 {[%clk
0:00:26.8]} 46. Rf7+ {[%clk 0:00:15.4]} 46... Ke5 {[%clk 0:00:25.5]} 47. Rf6
{[%clk 0:00:13.5]} 47... Rd8+ {[%clk 0:00:24]} 48. Ke2 {[%clk 0:00:13.2]} 48...
Kd4 {[%clk 0:00:23.5]} 49. Rxg6 {[%clk 0:00:09.3]} 49... Kxc4 {[%clk 0:00:23.5]}
50. Rxb6 {[%clk 0:00:09.8]} 50... Kb3 {[%clk 0:00:23.2]} 51. f4 {[%clk
0:00:08.4]} 51... Kxa4 {[%clk 0:00:22.6]} 52. f5 {[%clk 0:00:08.9]} 52... Re8
{[%clk 0:00:22.2]} 53. Kd3 {[%clk 0:00:08.6]} 53... Rd8+ {[%clk 0:00:20.6]} 54.
Kc4 {[%clk 0:00:08]} 54... Re8 {[%clk 0:00:17.6]} 55. Nd6 {[%clk 0:00:05.6]}
55... Bxd6 {[%clk 0:00:14.9]} 56. Rxd6 {[%clk 0:00:05.5]} 56... Re4+ {[%clk
0:00:15.3]} 57. Kd5 {[%clk 0:00:05.1]} 57... Rf4 {[%clk 0:00:14.8]} 58. Ke5
{[%clk 0:00:05.5]} 58... Rb4 {[%clk 0:00:14.3]} 59. b6 {[%clk 0:00:05.4]} 59...
Kb3 {[%clk 0:00:14.7]} 60. f6 {[%clk 0:00:06]} 60... a4 {[%clk 0:00:15]} 61. f7
{[%clk 0:00:06.5]} 61... a3 {[%clk 0:00:15.2]} 62. f8=Q {[%clk 0:00:06.9]} 62...
a2 {[%clk 0:00:15.6]} 63. Rd3+ {[%clk 0:00:07.4]} 63... Kc2 {[%clk 0:00:14.9]}
64. Qxb4 {[%clk 0:00:06.4]} 64... a1=Q+ {[%clk 0:00:12.4]} 65. Qc3+ {[%clk
0:00:06.6]} 65... Qxc3+ {[%clk 0:00:11.1]} 66. Rxc3+ {[%clk 0:00:07.5]} 66...
Kxc3 {[%clk 0:00:12]} 67. b7 {[%clk 0:00:08.4]} 1-0

[Event "*** Titled Tuesday Blitz"]
[Site "Chess.com"]
[Date "2020.03.03"]
[Round "5"]
[White "Anton_Demchenko"]
[Black "EugeneRougon"]
[Result "0-1"]
[WhiteElo "2962"]
[BlackElo "2706"]
[TimeControl "180+1"]
[EndTime "9:53:27 PST"]
[Termination "EugeneRougon won on time"]

1. e4 {[%clk 0:03:00.9]} 1... e6 {[%clk 0:03:00.1]} 2. d4 {[%clk 0:03:00.8]}
2... d5 {[%clk 0:03:00.5]} 3. Nd2 {[%clk 0:03:01.5]} 3... Be7 {[%clk 0:03:00.3]}
4. Ngf3 {[%clk 0:03:01.2]} 4... Nf6 {[%clk 0:02:59.1]} 5. e5 {[%clk 0:03:01.7]}
5... Nfd7 {[%clk 0:02:58.3]} 6. c3 {[%clk 0:03:02.6]} 6... c5 {[%clk 0:02:58.5]}
7. Be2 {[%clk 0:03:03.2]} 7... Nc6 {[%clk 0:02:49.9]} 8. O-O {[%clk 0:03:03.1]}
8... g5 {[%clk 0:02:39.3]} 9. Nb3 {[%clk 0:03:03.1]} 9... g4 {[%clk 0:02:29.4]}
10. Ne1 {[%clk 0:03:02.8]} 10... h5 {[%clk 0:02:26.1]} 11. Be3 {[%clk
0:03:02.1]} 11... b6 {[%clk 0:02:16.9]} 12. f3 {[%clk 0:02:51.7]} 12... Bg5
{[%clk 0:02:09.2]} 13. Qc1 {[%clk 0:02:41.1]} 13... Rg8 {[%clk 0:02:06.9]} 14.
Bxg5 {[%clk 0:02:31.6]} 14... Qxg5 {[%clk 0:02:05.5]} 15. f4 {[%clk 0:02:18.6]}
15... Qh6 {[%clk 0:01:54.4]} 16. Nc2 {[%clk 0:02:13]} 16... Bb7 {[%clk
0:01:20.6]} 17. Qe3 {[%clk 0:02:06.3]} 17... Ne7 {[%clk 0:01:09.3]} 18. Bb5
{[%clk 0:01:28.6]} 18... Nf5 {[%clk 0:01:04.9]} 19. Qe1 {[%clk 0:01:28.5]} 19...
O-O-O {[%clk 0:00:30.5]} 20. Ne3 {[%clk 0:01:26.3]} 20... c4 {[%clk 0:00:23.4]}
21. Nd2 {[%clk 0:01:23]} 21... Nf8 {[%clk 0:00:20.7]} 22. Ba4 {[%clk 0:01:17.7]}
22... Ng6 {[%clk 0:00:17.3]} 23. Nxf5 {[%clk 0:01:13.5]} 23... exf5 {[%clk
0:00:18.2]} 24. Qe3 {[%clk 0:01:14.2]} 24... Nf8 {[%clk 0:00:17.6]} 25. Bc2
{[%clk 0:01:14.1]} 25... Qg6 {[%clk 0:00:16.2]} 26. b3 {[%clk 0:01:10.8]} 26...
cxb3 {[%clk 0:00:15.5]} 27. axb3 {[%clk 0:01:10.6]} 27... Kb8 {[%clk 0:00:16]}
28. Ra2 {[%clk 0:01:04.7]} 28... Ne6 {[%clk 0:00:16.2]} 29. Rfa1 {[%clk
0:01:04.6]} 29... a5 {[%clk 0:00:16.7]} 30. Rb2 {[%clk 0:00:51.9]} 30... h4
{[%clk 0:00:16.2]} 31. b4 {[%clk 0:00:51.6]} 31... axb4 {[%clk 0:00:15.9]} 32.
Rxb4 {[%clk 0:00:51.7]} 32... Kc7 {[%clk 0:00:16.4]} 33. Rab1 {[%clk 0:00:48.5]}
33... Ra8 {[%clk 0:00:15]} 34. Rxb6 {[%clk 0:00:47.4]} 34... Bc6 {[%clk
0:00:14.9]} 35. R6b2 {[%clk 0:00:43.8]} 35... g3 {[%clk 0:00:14.8]} 36. h3
{[%clk 0:00:43.6]} 36... Rgb8 {[%clk 0:00:14.7]} 37. Rxb8 {[%clk 0:00:29]} 37...
Rxb8 {[%clk 0:00:15.6]} 38. Rxb8 {[%clk 0:00:29.4]} 38... Kxb8 {[%clk
0:00:15.7]} 39. Nf3 {[%clk 0:00:30.3]} 39... Qh6 {[%clk 0:00:15.2]} 40. Ng5
{[%clk 0:00:30.8]} 40... Nxg5 {[%clk 0:00:13]} 41. fxg5 {[%clk 0:00:31.1]} 41...
Qh5 {[%clk 0:00:13.9]} 42. Qf3 {[%clk 0:00:06.3]} 42... Qxg5 {[%clk 0:00:13.5]}
43. Bxf5 {[%clk 0:00:06.5]} 43... Qc1+ {[%clk 0:00:12.9]} 44. Qf1 {[%clk
0:00:06.3]} 44... Qxc3 {[%clk 0:00:12.9]} 45. Bg4 {[%clk 0:00:04.3]} 45... Qxd4+
{[%clk 0:00:12.7]} 46. Kh1 {[%clk 0:00:05]} 46... Qxe5 {[%clk 0:00:11.5]} 47.
Bf3 {[%clk 0:00:03.2]} 47... Kc7 {[%clk 0:00:10.6]} 48. Qc1 {[%clk 0:00:02.9]}
48... Kd6 {[%clk 0:00:10.1]} 49. Qa3+ {[%clk 0:00:02.8]} 49... Ke6 {[%clk
0:00:10]} 50. Qc1 {[%clk 0:00:02.9]} 50... f5 {[%clk 0:00:09.3]} 51. Qh6+ {[%clk
0:00:03.2]} 51... Qf6 {[%clk 0:00:09.7]} 52. Qc1 {[%clk 0:00:04.1]} 52... Kf7
{[%clk 0:00:09.8]} 53. Qc2 {[%clk 0:00:03.6]} 53... Kg7 {[%clk 0:00:09.5]} 54.
Bd1 {[%clk 0:00:03.8]} 54... Qe5 {[%clk 0:00:08.4]} 55. Qd2 {[%clk 0:00:04]}
55... f4 {[%clk 0:00:07.7]} 56. Qb4 {[%clk 0:00:03.1]} 56... d4 {[%clk
0:00:05.8]} 57. Bf3 {[%clk 0:00:01.8]} 57... Bxf3 {[%clk 0:00:05.6]} 58. gxf3
{[%clk 0:00:02.7]} 58... g2+ {[%clk 0:00:04.9]} 59. Kxg2 {[%clk 0:00:02.6]}
59... Qe2+ {[%clk 0:00:05.2]} 60. Kg1 {[%clk 0:00:03.1]} 60... Qe3+ {[%clk
0:00:05.4]} 61. Kg2 {[%clk 0:00:03.4]} 61... d3 {[%clk 0:00:05.4]} 62. Qb7+
{[%clk 0:00:02.3]} 62... Kf6 {[%clk 0:00:06.3]} 63. Qc6+ {[%clk 0:00:02.6]}
63... Ke5 {[%clk 0:00:06.6]} 64. Qc7+ {[%clk 0:00:02.5]} 64... Kd4 {[%clk
0:00:07.2]} 65. Qd6+ {[%clk 0:00:02.6]} 65... Kc3 {[%clk 0:00:07.6]} 66. Qa3+
{[%clk 0:00:02.8]} 66... Kc2 {[%clk 0:00:07.8]} 67. Qa2+ {[%clk 0:00:02.9]}
67... Kd1 {[%clk 0:00:08.4]} 68. Qb1+ {[%clk 0:00:02.8]} 68... Ke2 {[%clk
0:00:08.7]} 0-1

[Event "*** Titled Tuesday Blitz"]
[Site "Chess.com"]
[Date "2020.03.03"]
[Round "5"]
[White "giantslayer83"]
[Black "GM_dmitrij"]
[Result "1-0"]
[WhiteElo "2666"]
[BlackElo "2805"]
[TimeControl "180+1"]
[EndTime "9:53:27 PST"]
[Termination "giantslayer83 won by resignation"]

1. d4 {[%clk 0:02:55.8]} 1... Nf6 {[%clk 0:03:00]} 2. c4 {[%clk 0:02:55.2]} 2...
e6 {[%clk 0:03:00.4]} 3. Nf3 {[%clk 0:02:52.9]} 3... b6 {[%clk 0:03:00.4]} 4. a3
{[%clk 0:02:51.3]} 4... Bb7 {[%clk 0:03:00.2]} 5. Nc3 {[%clk 0:02:51.3]} 5... d5
{[%clk 0:03:00.5]} 6. Qc2 {[%clk 0:02:50.3]} 6... c5 {[%clk 0:02:56.2]} 7. cxd5
{[%clk 0:02:45.6]} 7... cxd4 {[%clk 0:02:54.9]} 8. Qa4+ {[%clk 0:02:34.8]} 8...
Nbd7 {[%clk 0:02:37.3]} 9. dxe6 {[%clk 0:02:34]} 9... dxc3 {[%clk 0:02:36.6]}
10. exd7+ {[%clk 0:02:33.6]} 10... Qxd7 {[%clk 0:02:37.5]} 11. Qxd7+ {[%clk
0:02:31.7]} 11... Nxd7 {[%clk 0:02:38.4]} 12. bxc3 {[%clk 0:02:32.6]} 12... Rc8
{[%clk 0:02:37.6]} 13. Bd2 {[%clk 0:02:09.9]} 13... Be7 {[%clk 0:02:32.9]} 14.
e3 {[%clk 0:02:09.7]} 14... O-O {[%clk 0:02:30.1]} 15. c4 {[%clk 0:02:01.1]}
15... Bxf3 {[%clk 0:02:27]} 16. gxf3 {[%clk 0:02:00.2]} 16... Ne5 {[%clk
0:02:27.9]} 17. f4 {[%clk 0:01:52]} 17... Nxc4 {[%clk 0:02:26.1]} 18. Bb4 {[%clk
0:01:51.6]} 18... Rfe8 {[%clk 0:02:02.6]} 19. Bh3 {[%clk 0:01:42.6]} 19... Rc7
{[%clk 0:01:46.6]} 20. Ke2 {[%clk 0:01:40.8]} 20... a5 {[%clk 0:01:37.7]} 21.
Bxe7 {[%clk 0:01:39.4]} 21... Rexe7 {[%clk 0:01:38.6]} 22. Rhd1 {[%clk 0:01:32]}
22... g6 {[%clk 0:01:37.3]} 23. a4 {[%clk 0:01:32.1]} 23... Rc5 {[%clk
0:01:32.6]} 24. Rab1 {[%clk 0:01:30]} 24... Kg7 {[%clk 0:01:25.3]} 25. Bg2
{[%clk 0:01:23.8]} 25... Re6 {[%clk 0:00:59.4]} 26. Rd5 {[%clk 0:01:22.4]} 26...
Rec6 {[%clk 0:00:49.5]} 27. Rd7 {[%clk 0:01:21.6]} 27... Rc7 {[%clk 0:00:46.9]}
28. Rxc7 {[%clk 0:01:18.7]} 28... Rxc7 {[%clk 0:00:47.8]} 29. Bd5 {[%clk
0:01:18.8]} 29... Rc5 {[%clk 0:00:40.8]} 30. e4 {[%clk 0:01:15]} 30... b5 {[%clk
0:00:30.3]} 31. Rxb5 {[%clk 0:01:13]} 31... Rxb5 {[%clk 0:00:30.1]} 32. axb5
{[%clk 0:01:13.9]} 32... Nb6 {[%clk 0:00:31]} 33. Kd3 {[%clk 0:01:11.2]} 33...
Kf6 {[%clk 0:00:06.6]} 34. Kd4 {[%clk 0:01:08.4]} 34... a4 {[%clk 0:00:06.6]}
35. Ba2 {[%clk 0:01:07.4]} 35... Ke7 {[%clk 0:00:06.2]} 36. Kc5 {[%clk 0:01:07]}
36... Nd7+ {[%clk 0:00:06.6]} 37. Kc6 {[%clk 0:01:07.2]} 37... Nb8+ {[%clk
0:00:06.6]} 38. Kc7 {[%clk 0:01:05.3]} 38... Nd7 {[%clk 0:00:06.4]} 39. b6
{[%clk 0:01:05.5]} 39... Nc5 {[%clk 0:00:05.8]} 40. b7 {[%clk 0:01:05.7]} 40...
Na6+ {[%clk 0:00:05.8]} 41. Kc8 {[%clk 0:01:05.3]} 41... Kd6 {[%clk 0:00:06.2]}
42. b8=Q+ {[%clk 0:01:04.5]} 42... Nxb8 {[%clk 0:00:06.2]} 43. Kxb8 {[%clk
0:01:05.4]} 43... f6 {[%clk 0:00:07.1]} 44. Kb7 {[%clk 0:01:05.2]} 44... g5
{[%clk 0:00:07.3]} 45. Kb6 {[%clk 0:00:32.4]} 45... gxf4 {[%clk 0:00:06.8]} 46.
f3 {[%clk 0:00:32]} 46... Ke5 {[%clk 0:00:06.8]} 47. Kc5 {[%clk 0:00:30]} 47...
f5 {[%clk 0:00:07.4]} 48. exf5 {[%clk 0:00:28.8]} 48... Kxf5 {[%clk 0:00:08.3]}
49. Kd4 {[%clk 0:00:28.6]} 49... Kg5 {[%clk 0:00:08.1]} 50. Ke5 {[%clk
0:00:28.6]} 50... h5 {[%clk 0:00:06.5]} 51. Bc4 {[%clk 0:00:24.4]} 51... a3
{[%clk 0:00:06.3]} 52. Bd5 {[%clk 0:00:24.3]} 52... Kh4 {[%clk 0:00:02.1]} 53.
Kxf4 {[%clk 0:00:23.4]} 53... Kh3 {[%clk 0:00:02.4]} 54. Kg5 {[%clk 0:00:23.5]}
54... Kxh2 {[%clk 0:00:02.7]} 55. f4 {[%clk 0:00:23.6]} 55... Kg3 {[%clk
0:00:02.9]} 56. f5 {[%clk 0:00:23.4]} 56... h4 {[%clk 0:00:03.7]} 57. f6 {[%clk
0:00:23.6]} 57... h3 {[%clk 0:00:02.5]} 58. f7 {[%clk 0:00:23.4]} 58... a2
{[%clk 0:00:01.5]} 59. Bxa2 {[%clk 0:00:21.7]} 59... h2 {[%clk 0:00:02.4]} 60.
Bd5 {[%clk 0:00:20.5]} 1-0

[Event "*** Titled Tuesday Blitz"]
[Site "Chess.com"]
[Date "2020.03.03"]
[Round "5"]
[White "youngKID"]
[Black "Witik"]
[Result "0-1"]
[WhiteElo "2820"]
[BlackElo "2649"]
[TimeControl "180+1"]
[EndTime "9:53:29 PST"]
[Termination "Witik won on time"]

1. Nf3 {[%clk 0:01:51.9]} 1... Nf6 {[%clk 0:02:56.3]} 2. g3 {[%clk 0:01:52.8]}
2... d5 {[%clk 0:02:56.3]} 3. Bg2 {[%clk 0:01:52.6]} 3... c6 {[%clk 0:02:56.7]}
4. O-O {[%clk 0:01:53.4]} 4... Bg4 {[%clk 0:02:57.3]} 5. d3 {[%clk 0:01:53.8]}
5... Nbd7 {[%clk 0:02:57.5]} 6. Nbd2 {[%clk 0:01:54]} 6... e5 {[%clk 0:02:57.4]}
7. h3 {[%clk 0:01:52.2]} 7... Bh5 {[%clk 0:02:57.3]} 8. e4 {[%clk 0:01:45.5]}
8... Bd6 {[%clk 0:02:56.4]} 9. Qe1 {[%clk 0:01:43.7]} 9... O-O {[%clk
0:02:55.7]} 10. Nh4 {[%clk 0:01:43.1]} 10... Re8 {[%clk 0:02:55.1]} 11. Nf5
{[%clk 0:01:42]} 11... Bf8 {[%clk 0:02:54.7]} 12. Nf3 {[%clk 0:01:39]} 12... Qc7
{[%clk 0:02:47.9]} 13. Bg5 {[%clk 0:01:30.1]} 13... Re6 {[%clk 0:02:07]} 14. Nh2
{[%clk 0:01:25]} 14... dxe4 {[%clk 0:01:49.7]} 15. dxe4 {[%clk 0:01:24.3]} 15...
Nc5 {[%clk 0:01:35.8]} 16. g4 {[%clk 0:01:08.1]} 16... Bg6 {[%clk 0:01:35.3]}
17. h4 {[%clk 0:01:07.9]} 17... h6 {[%clk 0:01:01.5]} 18. Bxf6 {[%clk
0:01:04.6]} 18... Rxf6 {[%clk 0:01:01.8]} 19. g5 {[%clk 0:01:04.2]} 19... hxg5
{[%clk 0:01:02.2]} 20. hxg5 {[%clk 0:01:05]} 20... Rxf5 {[%clk 0:01:02.7]} 21.
exf5 {[%clk 0:01:04.7]} 21... Bxf5 {[%clk 0:01:03.6]} 22. Qe2 {[%clk 0:01:03.2]}
22... e4 {[%clk 0:00:59.4]} 23. Rae1 {[%clk 0:00:50.5]} 23... Qf4 {[%clk
0:00:51.4]} 24. Qe3 {[%clk 0:00:48.8]} 24... Qh4 {[%clk 0:00:50.2]} 25. Qg3
{[%clk 0:00:42.8]} 25... Qxg3 {[%clk 0:00:29.4]} 26. fxg3 {[%clk 0:00:43.4]}
26... Bg6 {[%clk 0:00:29.1]} 27. b4 {[%clk 0:00:40.3]} 27... Ne6 {[%clk
0:00:29.1]} 28. Bxe4 {[%clk 0:00:37.8]} 28... Bxe4 {[%clk 0:00:28.9]} 29. Rxe4
{[%clk 0:00:38.7]} 29... Nxg5 {[%clk 0:00:29.8]} 30. Rc4 {[%clk 0:00:33.1]}
30... Ne6 {[%clk 0:00:19.9]} 31. a4 {[%clk 0:00:31.7]} 31... a5 {[%clk
0:00:19.5]} 32. bxa5 {[%clk 0:00:28.9]} 32... Rxa5 {[%clk 0:00:19.1]} 33. Rb1
{[%clk 0:00:25.2]} 33... b5 {[%clk 0:00:19.4]} 34. axb5 {[%clk 0:00:24.7]} 34...
cxb5 {[%clk 0:00:20.3]} 35. Rc8 {[%clk 0:00:23.9]} 35... Kh7 {[%clk 0:00:15.7]}
36. Nf3 {[%clk 0:00:24.1]} 36... b4 {[%clk 0:00:15.9]} 37. Kg2 {[%clk
0:00:22.1]} 37... Ra2 {[%clk 0:00:13.7]} 38. Kh3 {[%clk 0:00:19.1]} 38... Be7
{[%clk 0:00:13.7]} 39. Re1 {[%clk 0:00:16.3]} 39... Ra3 {[%clk 0:00:11.8]} 40.
Kg2 {[%clk 0:00:14.5]} 40... Bf6 {[%clk 0:00:10.7]} 41. Re4 {[%clk 0:00:12.9]}
41... b3 {[%clk 0:00:08.1]} 42. cxb3 {[%clk 0:00:12.1]} 42... Rxb3 {[%clk
0:00:09]} 43. Rc2 {[%clk 0:00:10.7]} 43... Kg6 {[%clk 0:00:09.1]} 44. Rg4+
{[%clk 0:00:10.1]} 44... Kf5 {[%clk 0:00:08.8]} 45. Rgc4 {[%clk 0:00:09.5]}
45... g5 {[%clk 0:00:08.7]} 46. Rf2 {[%clk 0:00:07.1]} 46... Kg6 {[%clk
0:00:08]} 47. Re4 {[%clk 0:00:06.6]} 47... Nc5 {[%clk 0:00:05.7]} 48. Ne5+
{[%clk 0:00:05.2]} 48... Kg7 {[%clk 0:00:05.1]} 49. Ree2 {[%clk 0:00:05.1]}
49... Ne6 {[%clk 0:00:03.4]} 50. Ng4 {[%clk 0:00:04.6]} 50... Bd4 {[%clk
0:00:03.3]} 51. Rf3 {[%clk 0:00:03.1]} 51... Ba1 {[%clk 0:00:02.6]} 52. Rxb3
{[%clk 0:00:01]} 52... Nf4+ {[%clk 0:00:02.1]} 0-1